Workbook

Sheet Tdr Summary
A1: ETHEKWINI MUNICIPALITY CLEANSING & SOLID WASTE
A2: CONTRACT WS 7638
A3: LOVU LANDFILL: CONSTRUCTION OF CELL 6 AND ANCILLARY WORKS
A4: SUMMARY OF BILL OF QUANTITIES
A6: SECTION 1 | B6: DESCRIPTION | D6: AMOUNT
A7: 1 | B7: =+' Sec.1 Fixed Charge'!C7 -> SCHEDULED FIXED CHARGE & VALUE RELATED ITEMS
A8: 1 | B8: =+' Sec.1Time Related 1.15 - 1.28'!C5 -> SCHEDULED TIME-RELATED ITEMS
A9: 1 | B9: =+'Sec.1 Prov.1.29 - 1.42'!C5 -> SUMS STATED PROVISIONALLY BY ENGINEER
A10: 2 | B10: SITE CLEARANCE
A11: 3 | B11: EARTHWORKS
A12: 4 | B12: EARTHWORKS : PIPE TRENCHES
A13: =+A12+1 -> 5 | B13: EARTHWORKS : ROADS, SUBGRADE
A14: =+A13+1 -> 6 | B14: ROADS : SURFACING
A15: =+A14+1 -> 7 | B15: GABIONS, PITCHING INCLUDING GEOFABRIC
A16: =+A15+1 -> 8 | B16: CONCRETE WORK
A17: 9 | B17: MEDIUM PRESSURE PIPELINES & SEWERS
A18: 10 | B18: STORMWATER DRAINAGE
A19: 11 | B19: PARTICULAR SPECIFICATIONS: LINING SYSTEMS
A20: 12 | B20: PARTICULAR SPECIFICATIONS: DAYWORKS
A21: SUB TOTAL
A22: ADD VALUE ADDED TAX | C22: 15%
A23: TOTAL CARRIED TO FORM OF OFFER AND ACCEPTANCE

Sheet Sec.1 Fixed Charge
A1: SECTION 1 : PRELIMINARY AND GENERAL
A2: Item | B2: Payment Ref | C2: Description | D2: Unit | E2: Total | F2: Rate | G2: Amount
B5: SABS 1200A GENERAL
C7: SCHEDULED FIXED CHARGE & VALUE RELATED ITEMS
A8: 1.1 | B8: A.8.3.1 | C8: Contractual requirements, sureties & insurance | D8: sum
B9: PSA.8.3.2 | C9: Establishment of facilities on site
A10: =A8+0.1 -> 1.2 | B10: PSAB.3.2 | C10: Offices for Engineer & staff and notice board | D10: sum
B11: PSA.8.3.2.2 | C11: Facilities for the Contractor
A12: =A10+0.1 -> 1.3 | C12: a) Offices & storage sheds | D12: sum
A13: =A12+0.1 -> 1.4 | C13: b) Workshops | D13: sum
A14: 1.5 | C14: e) Ablution & latrine facilities | D14: sum
A15: 1.6 | C15: f) Tools & equipment | D15: sum
A16: 1.7 | C16: g) Water supplies, electric power & communications | D16: sum
A17: 1.8 | C17: h) Dealing with leachate, water & dust. | D17: sum
A18: 1.9 | C18: i) Access | D18: sum
A19: 1.10 | C19: j) Plant | D19: sum
A20: =A19+0.01 -> 1.11 | B20: PSA.8.3.3 & PS 11 | C20: Other fixed-charge obligations: setting out, security, deviations and dealing with traffic. | D20: sum
A21: =A20+0.01 -> 1.12 | B21: PSA.8.3.5 | C21: As-built survey | D21: sum
A22: =A21+0.01 -> 1.13 | B22: PS-10.3 | C22: Contractor’s obligations in respect of the Occupational Health and Safety Act and any other Health & Safety regulations as may be applicable i.e. Covid-19 compliance. | D22: sum
A23: =A22+0.01 -> 1.14 | B23: A.8.3.4 | C23: Removal of site establishment | D23: sum
E26: TOTAL FIXED CHARGE ITEMS TO SUMMARY | F26: R

Sheet Sec.1Time Related 1.15 - 1.28
A1: SECTION 1 : PRELIMINARY AND GENERAL continued
A2: Item | B2: Payment Ref | C2: Description | D2: Unit | E2: Quantity | F2: Rate | G2: Amount
C5: SCHEDULED TIME-RELATED ITEMS
A6: 1.15 | B6: A.8.4.1 | C6: Contractual requirements, sureties & insurance | D6: sum
A7: =A6+0.01 -> 1.16 | B7: A.8.4.2 | C7: Operate & maintain facilities for the duration of the contract | D7: sum
A8: =A7+0.01 -> 1.17 | B8: PSAB.3.2 | C8: Offices for Engineer & staff and notice board | D8: sum
B9: PSA.8.4.2.2 | C9: Facilities for the Contractor for the duration of construction
A10: =A8+0.01 -> 1.18 | C10: a) Offices & storage sheds | D10: sum
A11: =A10+0.01 -> 1.19 | C11: b) Workshops | D11: sum
A12: =A11+0.01 -> 1.20 | C12: e) Ablution & latrine facilities | D12: sum
A13: 1.21 | C13: f) Tools & equipment | D13: sum
A14: 1.22 | C14: g) Water supplies, electric power & communications | D14: sum
A15: 1.23 | C15: h) Dealing with leachate, water & dust | D15: sum
A16: 1.24 | C16: i) Access | D16: sum
A17: 1.25 | C17: j) Plant | D17: sum
A18: 1.26 | B18: A.8.4.3 | C18: Supervision for duration of construction | D18: sum | G18: R 0.00
A19: 1.27 | B19: A.8.4.4 | C19: Company & head office overhead costs for the duration of the contract | D19: sum
A20: 1.28 | B20: PSA.8.4.5 & PS 11 | C20: Other time-related obligations: setting out, survey for as-built drawings, security, deviations and dealing with traffic. | D20: sum
E28: TOTAL TIME RELATED ITEMS TO SUMMARY | F28: R | G28: =SUM(G5:G27)+F1 -> R0.00

Sheet Sec.1 Prov.1.29 - 1.42
A1: SECTION 1 : PRELIMINARY AND GENERAL continued | E1: =' Sec.1 Fixed Charge'!E1 -> 0
A2: Item | B2: Payment Ref | C2: Description | D2: Unit | E2: Quantity | F2: Rate | G2: Amount
C5: SUMS STATED PROVISIONALLY BY ENGINEER
A6: 1.29 | B6: PSA.8.5(b) 1) | C6: Cost of acceptance testing | E6: Prov sum | G6: R50,000.00
A7: =A6+0.01 -> 1.30 | C7: Overheads, charges & profit on item above | D7: % | E7: =+G6 -> R 50 000.00 | G7: =+F7*$E7 -> R0.00
A8: =A7+0.01 -> 1.31 | B8: PSA.8.5(b) 1) | C8: Additional survey as required | E8: Prov sum | G8: R15,000.00
A9: 1.32 | C9: Overheads, charges & profit on item above | D9: % | E9: =+G8 -> R 15 000.00 | G9: =+F9*$E9 -> R0.00
A10: =+A9+0.01 -> 1.33 | B10: PSA.8.5(b) 1) | C10: Indigenous vegetation & education facilities | E10: Prov sum | G10: R25,000.00
A11: 1.34 | C11: Overheads, charges & profit on item above | D11: % | E11: =+G10 -> R 25 000.00 | G11: =+F11*$E11 -> R0.00
A12: 1.35 | B12: PSA.8.5(b) 1) | C12: Environmental Construction Management Plan audits | E12: Prov sum | G12: R50,000.00
A13: 1.36 | C13: Overheads, charges & profit on item above | D13: % | E13: =+G12 -> R 50 000.00 | G13: =+F13*$E13 -> R0.00
A14: 1.37 | B14: PSA.8.5(b) 1) | C14: Community Liaison officer | E14: Prov sum | G14: R200,000.00
A15: 1.38 | C15: Overheads, charges & profit on item above | D15: % | E15: =+G14 -> R 200 000.00 | G15: =+F15*$E15 -> R0.00
A16: =A15+0.01 -> 1.39 | B16: PSA.8.5(b) 1) | C16: Mentoring of CPG Contractor | E16: Prov sum | G16: R100,000.00
A17: =A16+0.01 -> 1.40 | C17: Overheads, charges & profit on item above | D17: % | E17: =+G16 -> R 100 000.00 | G17: =+F17*$E17 -> R0.00
A18: =A17+0.01 -> 1.41 | B18: PSA.8.5(b) 1) | C18: Allowance for a Social Facilitator | E18: Prov sum | G18: R200,000.00
A19: =A18+0.01 -> 1.42 | C19: Overheads, charges & profit on item above | D19: % | E19: =+G18 -> R 200 000.00 | G19: =+F19*$E19 -> R0.00
A20: =A17+0.01 -> 1.41 | B20: PSA.8.5(b) 1) | C20: Flowmeters for leachate measurement | E20: Prov sum | G20: R50,000.00
A21: 1.42 | C21: Overheads, charges & profit on item above | D21: % | E21: =+G20 -> R 50 000.00 | G21: =+F21*$E21 -> R0.00
A22: =A17+0.01 -> 1.41 | B22: PSA.8.5(b) 1) | C22: Temperature monitoring | E22: Prov sum | G22: R100,000.00
A23: 1.42 | C23: Overheads, charges & profit on item above | D23: % | E23: =+G22 -> R 100 000.00 | G23: =+F23*$E23 -> R0.00
A24: =+A23+0.01 -> 1.43 | B24: PSA.8.5(b) 1) | C24: Provision of a CQA Plan as required by the regulatory authorities conditions of approval. | E24: Prov sum | G24: R150,000.00
A25: 1.44 | C25: Overheads, charges & profit on item above | D25: % | E25: =+G24 -> R 150 000.00 | G25: =+F25*$E25 -> R0.00
A26: =+A25+0.01 -> 1.45 | B26: PSA.8.5(b) 1) | C26: Irrigation system for contaminated stormwater. | E26: Prov sum | G26: R250,000.00
A27: 1.46 | C27: Overheads, charges & profit on item above | D27: % | E27: =+G26 -> R 250 000.00 | G27: =+F27*$E27 -> R0.00
A28: =+A27+0.01 -> 1.47 | B28: PSA.8.5(b) 1) | C28: Workshop & washbay relocation | E28: Prov sum | G28: R900,000.00
A29: 1.48 | C29: Overheads, charges & profit on item above | D29: % | E29: =+G28 -> R 900 000.00 | G29: =+F29*$E29 -> R0.00
A30: =+A29+0.01 -> 1.49 | B30: PSA.8.5(b) 1) | C30: Services (water and electricity) to relocated workshop & washbay | E30: Prov sum | G30: R250,000.00
A31: 1.50 | C31: Overheads, charges & profit on item above | D31: % | E31: =+G30 -> R 250 000.00 | G31: =+F31*$E31 -> R0.00
A32: =+A31+0.01 -> 1.51 | B32: PSA.8.5(b) 1) | C32: Pump from Leachate Pond 3 to Leachate Treatment Plant | E32: Prov sum | G32: R300,000.00
A33: 1.52 | C33: Overheads, charges & profit on item above | D33: % | E33: =+G32 -> R 300 000.00 | G33: =+F33*$E33 -> R0.00
E35: TOTAL PROVISIONAL SUMS TO SUMMARY | F35: R

Sheet Sec.2 Site Clearance
A1: SECTION 2 : SITE CLEARANCE | E1: =' Sec.1 Fixed Charge'!E1 -> 0
A2: Item | B2: Payment Ref | C2: Description | D2: Unit | E2: Total | F2: Rate | G2: Amount
B5: SABS 1200C SITE CLEARANCE
A7: 2.1 | B7: PSC.8.2.1 | C7: Clear and grub including the removal of all sugar cane, any trees (girth up to 2,0m), stumps, poles, trimming of above ground obstructions including refuse, rubble roads and fencing. Including reclearing as instructed. All inc transport within 2km. | D7: m2 | E7: 55,000 | G7: =+F7*$E7 -> R0.00
A8: 2.2 | B8: PSC.8.2.10 | C8: Remove approx. 150mm topsoil & stockpile | D8: m3 | E8: 4,000 | G8: R0.00
A9: =+A8+0.1 -> 2.3 | B9: PSC.8.2.11 | C9: Transplanting trees. | D9: No. | E9: 5 | G9: R0.00
A10: =+A9+0.1 -> 2.4 | B10: PSC 8.2.12 | C10: Remove refuse from existing edge berms and in area where Cell 4 is to be repaired. For liner overlap, Cell 4 repair and leachate drainage. | D10: m3 | E10: 3,500 | G10: R0.00
A11: =+A10+0.1 -> 2.5 | B11: PSC 8.2.13 | C11: Remove protection materials from existing liner in overlap areas. | D11: m | E11: 240 | G11: R0.00
A12: =+A11+0.1 -> 2.6 | B12: PSC 8.2.14 | C12: Break out ex concrete approx. 250mm thick in paving, foundations and walls. | D12: m3 | E12: 30 | G12: R0.00
C14: SECTION 2 : TOTAL TO SUMMARY | F14: R | G14: =SUM(G6:G13) -> R0.00

Sheet Sec.3 Earth Wks
A1: SECTION 3 : EARTHWORKS | E1: =' Sec.1Time Related 1.15 - 1.28'!E1 -> 0
A2: Item | B2: Payment Ref | C2: Description | D2: Unit | E2: Total | F2: Rate | G2: Amount
B4: SABS 1200 D: EARTHWORKS
A5: 3.1 | B5: PSD.8.3.2 | C5: a) Excavate in all materials, fill and stockpile and maintain as instructed. Inclusive of all benching volumes and haulage. | D5: m3 | E5: 105,000 | G5: =+F5*$E5 -> R0.00
A6: =+A5+0.1 -> 3.2 | B6: PSD.8.3.2 | C6: b) Excavate in all materials in natural ground or from existing stockpiles, fill and compact to 90% Mod AASHTO density or as instructed. Inclusive of all benching volumes and haulage. | D6: m3 | E6: 30,000 | G6: R0.00
A7: =+A6+0.1 -> 3.3 | B7: D.8.3.3 | C7: c) Restricted excavation in all materials, compaction to 93% Mod AASHTO density. Inclusive of all benching volumes and haulage. (provisional). | D7: m3 | E7: 5,000 | G7: R0.00
A8: =A7+0.1 -> 3.4 | B8: DB.8.3.2 | C8: b) 2) Extra over all item above for hard rock excavation (provisional in LP 3 area). | D8: m3 | E8: 2,000 | G8: R0.00
A9: =+A7+0.1 -> 3.4 | B9: PSD.8.3.8 | C9: Existing services c) Excavate by hand to expose existing services | D9: m3 | E9: 15 | G9: R0.00
A10: =+A9+0.1 -> 3.5 | B10: D.8.3.10 | C10: a) Spreading of topsoil from stockpile | D10: m2 | E10: 3,000 | G10: R0.00
A11: =A10+0.1 -> 3.6 | B11: PSD.8.3.11 | C11: b) i) Grassing - sods | D11: m2 | E11: 1,000 | G11: R0.00
A12: =A11+0.1 -> 3.7 | B12: PSD.8.3.11 | C12: b) ii) Grassing - stolons (runners) | D12: m2 | E12: 1,000 | G12: R0.00
C14: SECTION 3 : TOTAL TO SUMMARY | F14: R | G14: =SUM(G5:G13) -> R0.00

Sheet Sec.4 Earth Wks Pipes
A1: SECTION 4 : EARTHWORKS (PIPE TRENCHES)
A2: Item | B2: Payment Ref | C2: Description | D2: Unit | E2: Quantity | F2: Rate | G2: Amount
B5: SABS 1200 DB : EARTHWORKS (PIPE TRENCHES)
B7: PSDB.8.3.2 (a) | C7: Excavation & backfill in all materials for
A9: 4.1 | C9: 1) Generally for 90 to 250mm inclusive outside diameter piping & drains. 0 - 1.2m depth. | D9: m3 | E9: 400 | G9: =+F9*$E9 -> R0.00
A10: =A9+0.1 -> 4.2 | C10: 2) Generally for 90 to 250mm inclusive outside diameter piping & drains. >1.2 - 2m depth. | D10: m3 | E10: 200 | G10: R0.00
A11: =A10+0.1 -> 4.3 | C11: 3) 250 to 1050mm inclusive diameter piping & anchor trenches. 0 - 1.3m depth. | D11: m3 | E11: 500 | G11: R0.00
A12: =A11+0.1 -> 4.4 | C12: 4) 250 to 1050mm inclusive diameter piping & anchor trenches. >1.3 - 2m depth. | D12: m3 | E12: 1,500 | G12: R0.00
A13: 4.5 | C13: 5) gas drains in the leachate drainage stone layer. | D13: m3 | E13: 30 | G13: R0.00
A14: =A13+0.1 -> 4.6 | B14: DB.8.3.2 | C14: b) 2) Extra over item above for hard rock excavation (provisional). | D14: m3 | E14: 10 | G14: R0.00
A15: =A14+0.1 -> 4.7 | B15: DB.8.3 | C15: c) Excavation of unsuitable material from trench bottom (provisional) | D15: m3 | E15: 50 | G15: R0.00
B16: PSDB.8.3.3.1 | C16: b) Imported backfill materials from commercial source
A18: =A15+0.1 -> 4.8 | C18: 1) Selected fill material | D18: m3 | E18: 1,000 | G18: =+F18*$E18 -> R0.00
A19: =A18+0.1 -> 4.9 | C19: 2) Selected granular material (prov). | D19: m3 | E19: 500 | G19: =+F19*$E19 -> R0.00
A20: 4.10 | C20: 3) 19mm single sized crushed stone. | D20: m3 | E20: 200 | G20: =+F20*$E20 -> R0.00
A21: =+A20+0.01 -> 4.11 | C21: 4) 53mm single sized crushed stone. | D21: m3 | E21: 600 | G21: =+F21*$E21 -> R0.00
A22: =A21+0.01 -> 4.12 | B22: PSDB.8.3.8 | C22: Anchor trench backfill and bed & backfill pipes etc with cement stabilised material inclusive of 6% cement by mass, approved material for stabilisation, mixing, placing and compaction to 95% Mod AASHTO density. Generally in selected areas for pipe bedding and / or backfilling where specified. | D22: m3 | E22: 1,100 | G22: =+F22*$E22 -> R0.00
C25: SECTION 4 : TOTAL TO SUMMARY | F25: R | G25: =SUM(G7:G24) -> R0.00

Sheet Sec.5 Earth Wks. Roads
A1: SECTION 5 : EARTHWORKS (Roads, Subgrade) | E1: ='Sec.1 Prov.1.29 - 1.42'!E1 -> 0
A2: Item | B2: Payment Ref | C2: Description | D2: Unit | E2: Quantity | F2: Rate | G2: Amount
B4: SABS 1200 DM: EARTHWORKS (Roads, Subgrade)
C5: Treatment of roadbed: road and liner formation
A6: 5.1 | B6: PSDM.8.3.3 | C6: a) 1) Treatment of in situ material by ripping and compacting to 93% Mod AASHTO density | D6: m2 | E6: 60,000 | G6: =F6*$E6 -> R0.00
B7: PSDM.8.3.4 | C7: Cut to Fill, Borrow to Fill
A8: =+A6+0.1 -> 5.2 | B8: PSDM.8.3.4 | C8: a) Compacted Clay Liner. Selected clay soil from site earthworks or stockpile, 600mm thick, compacted in 150mm layers to 95% Proctor density. Maximum slope 1v:2.5h. Provisional | D8: m3 | E8: 3,000 | G8: =F8*$E8 -> R0.00
A9: =A8+0.1 -> 5.3 | B9: PSDM.8.3.4 | C9: b) Base. Under drainage & monitoring system. Imported approved granular material, G7 quality generally 150mm thick. Compaction to 93% Mod AASHTO density. Slopes up to approximately 1v:2.5h. | D9: m3 | E9: 6,300 | G9: R0.00
A10: =A9+0.1 -> 5.4 | B10: PSDM.8.3.4 | C10: c) Liner protection layer - imported approved granular material, G6 quality generally 125mm & 150mm thick. stabilised with 6% cement by mass inclusive of supply, mixing, placing, shaping and compact to 95% Mod AASHTO density. Slopes up to approximately 1v:2.5h. | D10: m3 | E10: 6,300 | G10: R0.00
A11: 5.5 | B11: PSDM.8.3.4 | C11: d) Leachate drainage layer - Imported 75mm single sized, hard, durable crushed stone to the Engineer's approval. 150mm and 300mm thick. Nominal compaction. Slopes up to approximately 1v:2.5h. | D11: m3 | E11: 6,000 | G11: R0.00
A12: 5.6 | B12: PSDM.8.3.4 | C12: e) G5 imported gravel generally 150mm thick gravel wearing course to roadways inc supply, placing & grader shaping where specified. Compaction to 98% Mod AASHTO density. | D12: m3 | E12: 1,000 | G12: R0.00
A13: 5.7 | B13: PSDM.8.3.4 | C13: f) G5 / G6 imported gravel generally 150mm thick to roadways and where specified, stabilised with 6% cement by mass inclusive of supply, mixing, placing, grader shaping and compact to 97% Mod AASHTO density. | D13: m3 | E13: 1,050 | G13: R0.00
A14: =+A13+0.1 -> 5.8 | B14: PSDM.8.3.4 | C14: g) Dumprock. Imported quarried crushed rock to comply with DR in TRH 14, supply, place and spread, nominal compaction. Provisional. | D14: m3 | E14: 1,600 | G14: R0.00
A15: 5.9 | B15: PSDM.8.3.4 | C15: h) G7 selected fill material for road selected layer and where specified. Compaction to 95% Mod AASHTO density. Provisional. | D15: m3 | E15: 500 | G15: R0.00
A16: 5.10 | B16: PSDM.8.3.4 | C16: j) Waste cover. Material from site stockpiles, placed 150mm to 200mm thick on existing waste and compacted to 90% Mod AASHTO density or as approved. | D16: m3 | E16: 4,000 | G16: R0.00
A17: =+A16+0.01 -> 5.11 | B17: PSDM.8.3.15 | C17: Excavation & filling for catchwater mounds and channels incl. working on 1v:3h landfill slopes, forming and compaction | D17: m3 | E17: 1,200 | G17: R0.00
A18: =+A17+0.01 -> 5.12 | B18: PSDM.8.2.17 | C18: Cell edge & internal berms : Supply approved granular material, stabilised with 6% cement by mass inclusive of supply, mixing, placing, shaping and compact to 95% Mod AASHTO density. | D18: m3 | E18: 1,200 | G18: R0.00
C19: SECTION 5 : TOTAL TO SUMMARY | F19: R | G19: =SUM(G5:G18) -> R0.00

Sheet Sec 6 Roads
A1: SECTION 6 : ROADS : SURFACING
A2: Item | B2: Payment Ref | C2: Description | D2: Unit | E2: Quantity | F2: Rate | G2: Amount
B4: SABS 1200 ME, MF, MH & MK: SUBBASE, BASE, SURFACING & KERBING
C5: Base Course
A6: 6.1 | B6: MF.8.3.3 | C6: b) Graded crushed stone base (G2) compacted to 100% Mod AASHTO density, generally 150mm thick. Provisional. | D6: m3 | E6: 230 | G6: =+F6*$E6 -> R0.00
C7: Surfacing (new or overlay)
A8: =A6+0.1 -> 6.2 | B8: MH.8.5.1 | C8: Prime coat MSP 1 at 0,8l/m2 | D8: m2 | E8: 2 000 | G8: =+F8*$E8 -> R0.00
A9: =A8+0.1 -> 6.3 | B9: MH.8.5.3 | C9: Tack coat MSP 1 at 0,2l/m2 | D9: m2 | E9: 1 000 | G9: R0.00
A10: =A9+0.1 -> 6.4 | B10: MH.8.5.4 | C10: Asphalt wearing course 25mm up to 40mm thickness continuous grade with 5% bitumen content. Paver laid | D10: t | E10: 100 | G10: R0.00
A11: =A10+0.1 -> 6.5 | B11: MH.8.5.4 | C11: Asphalt wearing course 25mm up to 40mm thickness continuous grade with 5% bitumen content. Hand laid in repaired areas. | D11: t | E11: 50 | G11: =+F11*$E11 -> R0.00
B13: COLTO Ref | C13: Surfacing Repairs (ALL PROVISIONAL)
A14: =+A11+0.1 -> 6.6 | B14: PSC8.5.1 | C14: Standard crack sealing but including cleaning the crack with compressed air, applying herbicide and/or aggregate as needed, priming and sealing then rolling as required. Sealant and prime to be in accordance with Cl A8.5.5.2 or Colseal SBR latex modified mineral filled bitumen emulsion cold pour crack sealant or equal approved. | D14: m | E14: 500 | G14: =+F14*$E14 -> R0.00
B15: PSC8.6.1 | C15: Geosynthetic crack sealing but including cleaning cracks with compressed air, applying herbicide as needed, priming and sealing then rolling as required. Sealant to be Colseal SBR latex modified mineral filled bitumen emulsion cold pour crack sealant or equal approved. Geosynthetic to be Sealmac by Kaytech applied in accordance with the manufacturers' specification, or equal approved.
A16: =+A14+0.1 -> 6.7 | B16: PSC8.6.1.1 | C16: Sealing cracks with 200mm wide geosynthetic and sealant as specified in Cl A8.6.5.1 | D16: m | E16: 200 | G16: =+F16*$E16 -> R0.00
A17: =+A16+0.1 -> 6.8 | B17: PSC8.6.1.2 | C17: Sealing cracks with geosynthetic crack sealing over area as specified above and Cl A8.6.5.1 | D17: m2 | E17: 100 | G17: =+F17*$E17 -> R0.00
A18: =+A17+0.1 -> 6.9 | B18: PSC8.8.2.1 | C18: Excavation in existing pavements for patching or repair. To include for saw cutting and all asphalt, granular material and cemented layer removal as instructed on site for all areas of repair. | D18: m3 | E18: 80 | G18: R0.00
C21: SECTION 6 : TOTAL TO SUMMARY | F21: R | G21: =SUM(G5:G20) -> R0.00

Sheet Sec.7 Gabions & Pitching
A1: SECTION 7 : GABIONS & PITCHING | E1: =' Sec.1 Fixed Charge'!E1 -> 0
A2: Item | B2: Payment Ref | C2: Description | D2: Unit | E2: Quantity | F2: Rate | G2: Amount
B4: SABS 1200DK : GABIONS & PITCHING
B5: PSDK.8.2.2 | C5: Gabions
A6: 7.1 | C6: a) to drains and headwalls : 1m3 gabions with 2,5mm diameter wire galvanised & PVC coated 80 x 100mm mesh. Inclusive of all excavation & surface preparation. (Provisional). | D6: m3 | E6: 20 | G6: =+F6*$E6 -> R0.00
A7: =A6+0.1 -> 7.2 | C7: b) to drains and headwalls: Reno mattress 6m x 2m x 0,3m thick with 2,5mm diameter wire galvanised & PVC coated 80x100mm mesh. Inclusive of all excavation & surface preparation. (Provisional). | D7: m3 | E7: 20 | G7: R0.00
A8: =A7+0.1 -> 7.3 | C8: c) to drains: Reno mattress 6m x 2m x 0,17m thick with 2,5mm diameter wire galvanised & PVC coated 80x100mm mesh. Inclusive of all excavation & surface preparation. (Provisional). | D8: m3 | E8: 20 | G8: R0.00
A9: =A8+0.1 -> 7.4 | B9: PSDK.8.2.4 | C9: a) Type 3 Geofabric (180g/m2) to subsoil drains etc. Inclusive of all overlaps and wastage. | D9: m2 | E9: 15,000 | G9: R0.00
A10: =A8+0.1 -> 7.4 | B10: PSDK.8.2.4 | C10: a) Type 3 Geofabric (180g/m2)n to cover leachate drainage layer. Supply onto site only and excluding any overlaps or wastage. | D10: m2 | E10: 40,000 | G10: R0.00
A11: =A9+0.1 -> 7.5 | B11: PSDK.8.2.4 | C11: b) Type 5 Geofabric (340g/m2) to gabions & drains etc. Inclusive of all overlaps and wastage. | D11: m2 | E11: 9,000 | G11: R0.00
A12: =A11+0.1 -> 7.6 | B12: PSDK.8.2.4 | C12: c) 1000g/m2 geotextile liner protection (prov). | D12: m2 | E12: 200 | G12: R0.00
A13: =A12+0.1 -> 7.7 | B13: PSDK.8.2.4 | C13: Grid reinforcement (RockGrid PC 100/100 or equal approved) embedded in cemented sand Protection Layer. Supply and place. Provisional. | D13: m2 | E13: 10,000 | G13: =+F13*$E13 -> R0.00
A14: =+A13+0.1 -> 7.8 | B14: PSDK.8.2.5 | C14: Stone pitching for erosion control of stormwater. Inclusive of all backing & weepholes | D14: m2 | E14: 120 | G14: R0.00
A15: =+A14+0.1 -> 7.9 | B15: PSDK.8.2.8 | C15: Wind scatter fencing. CCA (SANS CCA H4) treated poles to SANS 457 Class 6 (140-159mm diameter) up to 6m long including excavation to depths of up to 1.5m and backfilling with 10MPa concrete measured elsewhere or as approved. | D15: No. | E15: 20 | G15: R0.00
A16: 7.10 | B16: PSDK.8.2.9 | C16: Wind scatter fencing. Shadecloth (20% typically), bird net or netting of suitable strength for wind scatter fencing including supply and installation with fully galvanised steel straining wires (3.15mm diameter to SANS 675) as needed on treated poles up to 5m high. Measured from ground level to the top of the poles excluding any overlaps and wastage. | D16: m2 | E16: 1,000 | G16: R0.00
C18: SECTION 7 : TOTAL TO SUMMARY | F18: R | G18: =SUM(G6:G17) -> R 0.00

Sheet Sec.8 Conc.
A1: SECTION 8 : CONCRETE WORK | E1: =' Sec.1 Fixed Charge'!E1 -> 0
A2: Item | B2: Payment Ref | C2: Description | D2: Unit | E2: Quantity | F2: Rate | G2: Amount
B4: SABS 1200G : CONCRETE WORK
C5: SCHEDULED REINFORCEMENT ITEMS
A6: =8.1 -> 8.1 | B6: PSG.8.3.1 | C6: Steel bars - mild, high tensile or welded mesh | D6: t | E6: 5.0 | G6: =+F6*$E6 -> R0.00
B7: PSG.8.4 | C7: SCHEDULED CONCRETE ITEMS
A8: =A6+0.1 -> 8.2 | B8: G.8.4.2 | C8: Blinding concrete. 10MPa strength | D8: m3 | E8: 5 | G8: =+F8*$E8 -> R0.00
A9: =A8+0.1 -> 8.3 | B9: G.8.4.3 | C9: Concrete Grade 20/19 to pipe encasement | D9: m3 | E9: 5 | G9: R0.00
A10: =A9+0.1 -> 8.4 | B10: PSG.8.4.3.1 | C10: Concrete "V" and trapezoidal type drains 25/19 concrete. Approx. 0,15m3/m but varies. | D10: m3 | E10: 225 | G10: R0.00
A11: =A10+0.1 -> 8.5 | B11: PSG.8.4.3.2 | C11: Concrete. Grade 30/19 concrete inc formwork, finishes, curing and jointing to non standard sewer & stormwater structures, drain junctions and outlets. | D11: m3 | E11: 10 | G11: R0.00
A12: =A11+0.1 -> 8.6 | B12: PSG.8.4.3.2 | C12: Concrete. Grade 35/19 concrete inc formwork, finishes, curing and jointing. 150 to 350mm thick. Generally paving for roadways and storage areas. | D12: m3 | E12: 1,420 | G12: R0.00
A13: =A12+0.1 -> 8.7 | B13: PSG.8.4.3.2 | C13: Concrete. Grade 35/19 concrete inc formwork, finishes, curing and jointing. 150 to 350mm thick. Generally washbay, workshop floor and foundations. | D13: m3 | E13: 80 | G13: R0.00
A14: 8.8 | B14: PSG.8.4.3.2 | C14: Concrete. Grade 30/19 concrete inc all formwork, boxing out, finishes and curing. 150 to 350mm thick in bases and walls for transfer facility. | D14: m3 | E14: 50 | G14: =+F14*$E14 -> R0.00
A15: =+A14+0.1 -> 8.9 | B15: PSG.8.4.3.3 | C15: Liner reinforcement ribs. 15MPa concrete, generally 500mm wide and 150mm thick.. Placement on slopes 1v:5h but up to approximately 1v:3h. | D15: m3 | E15: 10 | G15: R0.00
A16: 8.10 | B16: PSG.8.4.4 | C16: Protective screed. Multi Armour 100 or equal approved. Supply, lay in accordance with manufacture's recommendations and finish surface with power float. Skip area etc. | D16: m2 | E16: 6,150 | G16: =+F16*$E16 -> R0.00
A17: =+A16+0.01 -> 8.11 | B17: PSG.8.4.4 | C17: Protective screed. Multi Armour 120 or equal approved. Supply, lay in accordance with manufacture's recommendations and finish surface with power float. Workshop areas. | D17: m2 | E17: 350 | G17: =+F17*$E17 -> R0.00
C21: SECTION 8 : TOTAL TO SUMMARY | F21: R | G21: =SUM(G4:G20) -> R 0.00

Sheet Sec.9 Sewers (1)
A1: SECTION 9 : SEWERS
A2: Item | B2: Payment Ref | C2: Description | D2: Unit | E2: Quantity | F2: Rate | G2: Amount
B5: SABS 1200LD : SEWERS
B6: PSLD.8.2.1 | C6: Supply and lay Class 34 HD uPVC pipe
A7: 9.1 | C7: b) 160mm diameter. | D7: m | E7: 0 | G7: =F7*$E7 -> R0.00
B8: PSLD.8.2.1 | C8: Supply and lay PE 100 SDR 17 PN 10 HDPE pipe in the following sizes inclusive of fusion welding, bends, joints and T pieces. Generally as gravity leachate collectors.
A9: =A7+0.1 -> 9.2 | C9: 50mm OD solid wall Monitoring drains etc | D9: m | E9: 600 | G9: =F9*$E9 -> R0.00
A10: =+A9+0.1 -> 9.3 | C10: 90mm OD solid wall | D10: m | E10: 300 | G10: =F10*$E10 -> R0.00
A11: =+A10+0.1 -> 9.4 | C11: 160mm OD solid wall (prov) | D11: m | E11: 1,100 | G11: =F11*$E11 -> R0.00
A12: =+A11+0.1 -> 9.5 | C12: 250mm OD solid wall | D12: m | E12: 900 | G12: =F12*$E12 -> R0.00
C13: Supply and lay PE 100 SDR 9 PN 20 HDPE pipe in the following sizes inclusive of fusion welding, bends, joints and T pieces. Generally as gravity leachate collectors.
A14: =+A12+0.1 -> 9.6 | C14: 90mm OD solid wall | D14: m | E14: 100 | G14: =F14*$E14 -> R0.00
A15: =+A14+0.1 -> 9.7 | C15: 200mm OD solid wall | D15: m | E15: 100 | G15: =F15*$E15 -> R0.00
A16: =+A15+0.1 -> 9.8 | C16: 200mm OD perforated 4% min. open area. | D16: m | E16: 200 | G16: =F16*$E16 -> R0.00
B17: PSLD.8.2.3 | C17: Manholes
A18: =+A16+0.1 -> 9.9 | C18: Circular precast concrete 1000mm nominal diameter inclusive of Type 2 circular heavy duty concrete covers and frames. All Bituseal painted. 0 to 2,0m deep maximum. | D18: No. | E18: 12 | G18: =F18*$E18 -> R0.00
A19: 9.10 | B19: LD.8.2.9 | C19: Marker posts; 1,2m long precast concrete, painted | D19: No. | E19: 300 | G19: R0.00
A20: =+A19+0.01 -> 9.11 | B20: PSLD.8.2.13 | C20: Valves for up to 250mm OD HDPE piping | D20: No. | E20: 3 | G20: R0.00
A21: 9.12 | B21: PSLD.8.2.14 | C21: Connecting into existing leachate sewer systems, excluding piping & manholes but all cutting, jointing and making good. | D21: No. | E21: 2 | G21: R0.00
A22: 9.13 | B22: PSLD.8.2.15 | C22: Standpipe for leachate or water discharge to tanker | D22: No. | E22: 1 | G22: R0.00
A23: 9.14 | B23: PSLD.8.2.16 | C23: Conservancy tank as per detail. | D23: No. | E23: 2 | G23: R0.00
A24: 9.15 | B24: PSLD.8.2.17 | C24: Silt, oil & grease trap as per detail. | D24: No. | E24: 1 | G24: R0.00
A25: 9.16 | B25: PSLD.8.2.18 | C25: Cleaning of existing sewer lines including all manholes & chambers 110mm to 305mm diameter using approved pressure jet equipment. | D25: m | E25: 200 | G25: R0.00
A26: 9.17 | B26: PSLD.8.2.19 | C26: Tankering of leachate from the existing storage ponds on site to the Municipal Southern Wastewater Treatment Works at Merebank. Provisional. | D26: m3 | E26: 500 | G26: =+F26*E26 -> R0.00
C28: SECTION 9 : CARRIED FORWARD | F28: R | G28: =SUM(G5:G27) -> R 0.00

Sheet Sec.9 Sewers (2)
A1: SECTION 9 : SEWERS
A2: Item | B2: Payment Ref | C2: Description | D2: Unit | E2: Quantity | F2: Rate | G2: Amount
B5: SABS 1200LD : SEWERS
C6: SECTION 9 : BROUGHT FORWARD | G6: =+'Sec.9 Sewers (1)'!G28 -> R 0.00
C7: WATER STORAGE RESERVOIR
A8: 9.20 | B8: PSLD.8.2.20 | C8: Nominal 60m3 tank, roofed with all panels and roof of Zincalume coated steel to SANS 9364 suitable for use in the coastal environment or Grade 316 stainless steel (ASTM A240). Bolts hot dip galvanised to SANS 121. Dome roof to be self supporting. Tank to have wind girts as needed and fixed access ladder with safety cage, platform, access hatch and hand rails, all suitably corrosion protected. Level indicator and ventilation to be provided. (ATS FlexiTank systems AluZinc tank or equal approved). Tank to be lined with UV stabilised PVC liner 1000g/m2 minimum (or equal approved) as specified by the manufacturer. | D8: No. | E8: 1 | G8: =+F8*E8 -> R0.00
A9: =+A8+0.01 -> 9.21 | B9: PSLD.8.2.21 | C9: Tank penetrations inlet, outlet & dump drain. All components to be hot dip galvanised and gaskets to be neoprene or similar. Nominal maximum diameter 100mm (101.6mm), flanges to SABS 1123. Flanged each side or nozzle and strainer for inlet and outlet respectively. All to Engineers approval. | D9: No. | E9: 5 | G9: =+F9*E9 -> R0.00
A10: 9.22 | B10: PSLD.8.2.22 | C10: Piping. Nominal diameter up to 100mm (101.6mm), flanges to SABS 1123 all hot dip galvanised to relevant SANS specification. Including flanges, bends and/or other couplings, bowser supports and adaptors. | D10: m | E10: 50 | G10: R0.00
A11: 9.23 | B11: PSLD.8.2.23 | C11: Valves. Minimum hot dip galvanised with body & stainless steel Grade 316 blade, knife gate valves, PTFE O rings and seta, manual, nominal diameter up to 100mm, flanged. Including all fixings. | D11: No. | E11: 4 | G11: R0.00
C13: SECTION 9 : TOTAL TO SUMMARY | F13: R | G13: =SUM(G6:G12) -> R 0.00

Sheet Sec.10 SWD
A1: SECTION 10 : STORMWATER DRAINAGE | E1: =' Sec.1 Fixed Charge'!E1 -> 0
A2: Item | B2: Payment Ref | C2: Description | D2: Unit | E2: Quantity | F2: Rate | G2: Amount
B4: SABS 1200LE : STORMWATER DRAINAGE
B5: PSLE.8.2.1 | C5: Supply & lay concrete pipe.
A6: 10.1 | C6: a) 450 diameter 100D spigot and socket. | D6: m | E6: 48 | G6: =F6*$E6 -> R0.00
A7: =A6+0.1 -> 10.2 | C7: b) 600 diameter 100D spigot and socket. | D7: m | E7: 64 | G7: =F7*$E7 -> R0.00
A8: =A7+0.1 -> 10.3 | C8: b) 1050 diameter 100D spigot and socket. | D8: m | E8: 130 | G8: =F8*$E8 -> R0.00
B9: PSLE.8.2.1 | C9: Subsoil pipes
C10: a) Perforated "Drainex" pipe or equal approved to subsurface drains.
A11: =A8+0.1 -> 10.4 | C11: i) 110mm diameter DN 110 | D11: m | E11: 2,000 | G11: =F11*$E11 -> R0.00
A12: =+A11+0.1 -> 10.5 | B12: PSLE.8.2.8 | C12: a) Supply & install manholes, kerb inlets or catchpits for up 600mm diameter pipe. Heavy duty concrete covers, max. 2m deep (prov.). Including low flow detail in base. | D12: No. | E12: 12 | G12: R0.00
A13: =+A12+0.1 -> 10.6 | B13: PSLE.8.2.8 | C13: a) Supply & install manholes, kerb inlets or catchpits for up 1 200mm diameter pipe. Heavy duty concrete covers, max. 2m deep (prov.). Including low flow detail in base. | D13: No. | E13: 2 | G13: R0.00
A14: =+A13+0.1 -> 10.7 | B14: PSLE.8.2.8 | C14: b) Inlet or outlet headwalls for up to 1200mm diameter pipe or smaller, and from open drains. All inclusive of excavation, reinforced concrete base, brick walls and trimming and grouting of pipework. | D14: No. | E14: 6 | G14: R0.00
A15: =A14+0.1 -> 10.8 | B15: PSLE.8.2.14 | C15: Brickwork 230mm thick. | D15: m2 | E15: 20 | G15: R0.00
A16: =A15+0.1 -> 10.9 | B16: PSLE.8.2.14 | C16: Brickwork 345mm thick. | D16: m2 | E16: 20 | G16: R0.00
A17: 10.10 | B17: PSLE.8.2.15 | C17: Cleaning of existing stormwater piping, manholes & chambers using approved pressure jetting equipment or other approved means, including emptying / de silting etc at the manholes. All removed material to be disposed of on the landfill as indicated, Size 450mm to 1100mm diameter. | D17: m | E17: 400 | G17: R0.00
C21: SECTION 10 : TOTAL TO SUMMARY | F21: R | G21: =SUM(G5:G20) -> R 0.00

Sheet Sec.11 Linings
A1: SECTION 10 : PARTICULAR SPECIFICATION : LINING SYSTEMS
A2: Item | B2: Payment Ref | C2: Description | D2: Unit | E2: Quantity | F2: Rate | G2: Amount
B4: PARTICULAR SPECIFICATION : LINING SYSTEMS
A5: =11.1 -> 11.1 | B5: LGM 8.1 | C5: Supply Geomembrane to GRI GM-13. 1.5mm thick HDPE as approved. Supply to the site and store safely, for slope areas measured net, excluding all wastage, overlaps and welding requirements but including anchorage length and overlap with existing liner. Including for embossed texturing on both faces of the geomembrane. | D5: m2 | E5: 43,000 | G5: =+F5*$E5 -> R 0.00
A6: =+A5+0.1 -> 11.2 | B6: LGM 8.2 | C6: Installation of Geomembrane to GRI GM-13. 1.5mm thick HDPE as approved. Completely install geomembrane on slopes of up to 1v:2.5h (generally 1v:3h max.). Slope area measured net, excluding all wastage, overlaps and welding requirements but including anchorage length and overlap with existing liner. Including for embossed texturing on both faces of the geomembrane. | D6: m2 | E6: 43,000 | G6: =+F6*$E6 -> R 0.00
A7: 11.3 | B7: LGM 8.3 | C7: Pipe penetrations through lining system. | D7: No. | E7: 3 | G7: =+F7*$E7 -> R 0.00
A8: 11.4 | B8: LGC.8.1 | C8: Geosynthetic Clay Liner (GCL). Supply to the site and store safely in accordance with the project and manufacturer's specifications. Slope area measured net, excluding all wastage, and overlaps but including anchorage length and overlap with existing liner. | D8: m2 | E8: 43,000 | G8: =+F8*$E8 -> R 0.00
A9: 11.5 | B9: LGC.8.2 | C9: Geosynthetic Clay Liner (GCL). Completely install on slopes of up to 1v:2.5h (generally flatter). Slope area measured net, excluding all wastage, and overlaps but including anchorage length and overlap with existing liner. | D9: m2 | E9: 43,000 | G9: =+F9*$E9 -> R 0.00
A10: =+A8+0.1 -> 11.5 | B10: LGM 8.5 | C10: Establishment of leak detection equipment, once off for dipole testing. | D10: sum
A11: 11.6 | B11: LGM 8.6 | C11: Leak detection of geomembrane lining by dipole in accordance with ASTM D7007. | D11: m2 | E11: 43,000 | G11: =+F11*$E11 -> R 0.00
A12: =+A11+0.1 -> 11.7 | B12: PSA.8.5 (b) 1) | C12: Provisional sum for specialist testing on the liner components as directed by the Engineer. | E12: Prov sum | F12: 0.0% | G12: R45,000.00
A13: =+A12+0.1 -> 11.8 | C13: Overheads, charges & profit on item above | D13: % | E13: =+G12 -> R 45 000.00 | G13: =+F13*E13 -> R0.00
C17: SECTION 11 : TOTAL TO SUMMARY | F17: R

Sheet Sec.11 Dayworks
A1: SECTION 12 : PARTICULAR SPECIFICATIONS : DAYWORKS | E1: =' Sec.1 Fixed Charge'!E1 -> 0 | F1: =+' Sec.1 Fixed Charge'!F1:G1 -> 0
A2: Item | B2: Payment Ref | C2: Description | D2: Unit | E2: Quantity | F2: Rate | G2: Amount
C5: PARTICULAR SPECIFICATIONS : DAYWORKS
C7: LABOUR
A8: 12.1 | B8: PAA-5.1 | C8: Unskilled workers | D8: hr | E8: 45 | G8: =+F8*$E8 -> R 0.00
A9: =A8+0.1 -> 12.2 | B9: PAA-5.1 | C9: Skilled workers (artisans) | D9: hr | E9: 45 | G9: =+F9*$E9 -> R 0.00
A10: =A9+0.1 -> 12.3 | B10: PAA-5.1 | C10: Operators & drivers | D10: hr | E10: 36 | G10: =+F10*$E10 -> R 0.00
A11: =A10+0.1 -> 12.4 | B11: PAA-5.1 | C11: Foreman | D11: hr | E11: 45 | G11: =+F11*$E11 -> R 0.00
A12: =A11+0.1 -> 12.5 | B12: PAA-5.1 | C12: Gang Supervisor | D12: hr | E12: 45 | G12: =+F12*$E12 -> R 0.00
C14: CONSTRUCTIONAL PLANT
A15: =A12+0.1 -> 12.6 | B15: PAA-5.2 | C15: Lowbed (40t capacity) | D15: km | E15: 500 | G15: =+F15*$E15 -> R 0.00
A16: =A15+0.1 -> 12.7 | B16: PAA-5.2 | C16: Bulldozer & ripper (Cat D5 to D6) | D16: hr | E16: 36 | G16: R 0.00
A17: =A16+0.1 -> 12.8 | B17: PAA-5.2 | C17: Grader (Cat 140G) | D17: hr | E17: 9 | G17: R 0.00
A18: =A17+0.1 -> 12.9 | B18: PAA-5.2 | C18: Front-end-loader 2.5m3 bucket | D18: hr | E18: 27 | G18: R 0.00
A19: 12.10 | B19: PAA-5.2 | C19: Front-end-loader 4m3 bucket | D19: hr | E19: 27 | G19: =+F19*$E19 -> R 0.00
A20: =A19+0.01 -> 12.11 | B20: PAA-5.2 | C20: Tracked excavator (20t - 22t) | D20: hr | E20: 45 | G20: R 0.00
A21: =+A20+0.01 -> 12.12 | B21: PAA-5.2 | C21: Tracked excavator (30t) | D21: hr | E21: 18 | G21: =+F21*$E21 -> R 0.00
A22: =+A21+0.01 -> 12.13 | B22: PAA-5.2 | C22: Tractor-loader backhoe (TLB) | D22: hr | E22: 36 | G22: R 0.00
A23: =A22+0.01 -> 12.14 | B23: PAA-5.2 | C23: Pedestrian Roller (Bomag 90) | D23: hr | E23: 24 | G23: R 0.00
A24: 12.15 | B24: PAA-5.2 | C24: Vibratory roller (8t - 10t) | D24: hr | E24: 9 | G24: R 0.00
A25: 12.16 | B25: PAA-5.2 | C25: Compressor & all tools (250cfm) | D25: hr | E25: 9 | G25: R 0.00
A26: 12.17 | B26: PAA-5.2 | C26: 6m3 tip truck | D26: hr | E26: 27 | G26: R 0.00
A27: 12.18 | B27: PAA-5.2 | C27: 10m3 tip truck | D27: hr | E27: 45 | G27: R 0.00
A28: =+A27+0.01 -> 12.19 | B28: PAA-5.2 | C28: All terrain dumptruck (ADT) 30t capacity | D28: hr | E28: 45 | G28: =+F28*$E28 -> R 0.00
A29: =+A28+0.01 -> 12.20 | B29: PAA-5.2 | C29: Crane truck; 10t capacity | D29: hr | E29: 24 | G29: R 0.00
A30: =+A29+0.01 -> 12.21 | B30: PAA-5.2 | C30: Light delivery vehicle | D30: km | E30: 200 | G30: R 0.00
A31: 12.22 | B31: PAA-5.2 | C31: Water Tanker 8 000 litres to 12 000 litres | D31: hr | E31: 120 | G31: R 0.00
A32: 12.23 | B32: PAA-5.2 | C32: Other : Contractor to specify
C35: SECTION 12 : TOTAL TO SUMMARY | F35: R | G35: =SUM(G6:G34) -> R 0.00

Sheet Sheet2
